[Event "Titled Tuesday Blitz February 21 Early 2023"]
[White "Fisher_TheGalactic"]
[Black "Uzcategui Rodriguez, Alejandro"]
[BlackFideId "3903400"]
[WhiteElo "2535"]
[BlackElo "2255"]
[Result "1-0"]
[Round "10"]
[TimeControl "180+2"]
[Date "2023.02.21"]
[WhiteClock "0:01:25"]
[BlackClock "0:00:52"]

1. Nf3 {[%clk 0:02:51]}  e6 {[%clk 0:02:58]} 2. d4 {[%clk 0:02:51]}  Nf6 {[%clk 0:02:58]} 3. c4 {[%clk 0:02:51]}  d5 {[%clk 0:02:59]} 4. Nc3 {[%clk 0:02:51]}  dxc4 {[%clk 0:02:59]} 5. e3 {[%clk 0:02:51]}  a6 {[%clk 0:02:58]} 6. Bxc4 {[%clk 0:02:52]}  b5 {[%clk 0:02:57]} 7. Bb3 {[%clk 0:02:51]}  Bb7 {[%clk 0:02:57]} 8. O-O {[%clk 0:02:52]}  Nbd7 {[%clk 0:02:57]} 9. a3 {[%clk 0:02:51]}  Be7 {[%clk 0:02:57]} 10. d5 {[%clk 0:02:50]}  exd5 {[%clk 0:02:53]} 11. Nxd5 {[%clk 0:02:51]}  Nxd5 {[%clk 0:02:53]} 12. Bxd5 {[%clk 0:02:52]}  Bxd5 {[%clk 0:02:52]} 13. Qxd5 {[%clk 0:02:53]}  O-O {[%clk 0:02:51]} 14. Rd1 {[%clk 0:02:51]}  Nb6 {[%clk 0:02:47]} 15. Qb3 {[%clk 0:02:51]}  Qc8 {[%clk 0:02:42]} 16. Bd2 {[%clk 0:02:51]}  Nc4 {[%clk 0:02:36]} 17. Bc3 {[%clk 0:02:51]}  Qg4 {[%clk 0:02:35]} 18. h3 {[%clk 0:02:51]}  Qh5 {[%clk 0:02:33]} 19. Nd4 {[%clk 0:02:46]}  Bd6 {[%clk 0:02:27]} 20. Nf3 {[%clk 0:02:43]}  Rab8 {[%clk 0:02:18]} 21. Rd4 {[%clk 0:02:40]}  Rfe8 {[%clk 0:02:18]} 22. Rad1 {[%clk 0:02:39]}  Bf8 {[%clk 0:02:01]} 23. Rh4 {[%clk 0:02:30]}  Qf5 {[%clk 0:01:56]} 24. Rf4 {[%clk 0:02:28]}  Qg6 {[%clk 0:01:50]} 25. Rg4 {[%clk 0:02:24]}  Qh5 {[%clk 0:01:44]} 26. Qc2 {[%clk 0:02:12]}  Rbd8 {[%clk 0:01:40]} 27. Rxd8 {[%clk 0:02:08]}  Rxd8 {[%clk 0:01:39]} 28. Ng5 {[%clk 0:02:05]}  Rd5 {[%clk 0:01:25]} 29. Nf3 {[%clk 0:01:44]}  Rd7 {[%clk 0:01:14]} 30. Qe4 {[%clk 0:01:36]}  Qd5 {[%clk 0:01:11]} 31. Qe8 {[%clk 0:01:30]}  g6 {[%clk 0:01:02]} 32. Rd4 {[%clk 0:01:25]}  Re7 {[%clk 0:00:52]} 33. Qxe7 {[%clk 0:01:25]}  Qxd4 {[%clk 0:00:51]} 34. Qxf8+ {[%clk 0:01:25]}  Kxf8 {[%clk 0:00:52]} 35. Nxd4 {[%clk 0:01:25]} 1-0


[Site "https://www.chess.com"]

[Event "Titled Tuesday Blitz February 21 Early 2023"]
[White "Avazkhonov, Alikhon"]
[Black "Padmini, Rout"]
[WhiteFideId "14208504"]
[BlackFideId "5029295"]
[WhiteElo "1538"]
[BlackElo "2375"]
[Result "1/2-1/2"]
[Round "10"]
[TimeControl "180+2"]
[Date "2023.02.21"]
[WhiteClock "0:00:03"]
[BlackClock "0:00:16"]

1. d4 {[%clk 0:03:00]}  Nf6 {[%clk 0:02:55]} 2. c4 {[%clk 0:03:01]}  c5 {[%clk 0:02:51]} 3. d5 {[%clk 0:03:01]}  b5 {[%clk 0:02:50]} 4. cxb5 {[%clk 0:03:01]}  a6 {[%clk 0:02:49]} 5. e3 {[%clk 0:03:02]}  g6 {[%clk 0:02:46]} 6. Nc3 {[%clk 0:03:02]}  Bg7 {[%clk 0:02:45]} 7. Nf3 {[%clk 0:03:03]}  O-O {[%clk 0:02:45]} 8. a4 {[%clk 0:03:02]}  d6 {[%clk 0:02:45]} 9. e4 {[%clk 0:02:46]}  Bb7 {[%clk 0:02:38]} 10. bxa6 {[%clk 0:02:38]}  Nxa6 {[%clk 0:02:39]} 11. Be2 {[%clk 0:02:36]}  e6 {[%clk 0:02:37]} 12. O-O {[%clk 0:02:27]}  exd5 {[%clk 0:02:29]} 13. exd5 {[%clk 0:02:27]}  Nb4 {[%clk 0:02:26]} 14. Bc4 {[%clk 0:02:24]}  Re8 {[%clk 0:02:22]} 15. h3 {[%clk 0:02:17]}  Ne4 {[%clk 0:02:22]} 16. Qb3 {[%clk 0:02:08]}  Rb8 {[%clk 0:02:11]} 17. Re1 {[%clk 0:00:30]}  Nf6 {[%clk 0:02:04]} 18. Rxe8+ {[%clk 0:00:29]}  Qxe8 {[%clk 0:02:05]} 19. Bf4 {[%clk 0:00:28]}  Qd7 {[%clk 0:02:02]} 20. Rd1 {[%clk 0:00:22]}  Ba6 {[%clk 0:01:46]} 21. Bxa6 {[%clk 0:00:11]}  Nxa6 {[%clk 0:01:47]} 22. Nb5 {[%clk 0:00:12]}  Nc7 {[%clk 0:01:44]} 23. Rb1 {[%clk 0:00:05]}  Nxb5 {[%clk 0:01:43]} 24. axb5 {[%clk 0:00:06]}  Rxb5 {[%clk 0:01:41]} 25. Qa4 {[%clk 0:00:06]}  Qb7 {[%clk 0:01:33]} 26. Bxd6 {[%clk 0:00:05]}  Nxd5 {[%clk 0:01:34]} 27. Ne5 {[%clk 0:00:04]}  Nc3 {[%clk 0:01:27]} 28. Qc4 {[%clk 0:00:03]}  Nxb1 {[%clk 0:01:26]} 29. Nxf7 {[%clk 0:00:02]}  Qxf7 {[%clk 0:01:18]} 30. Qxb5 {[%clk 0:00:02]}  h5 {[%clk 0:01:10]} 31. Qxc5 {[%clk 0:00:02]}  Nd2 {[%clk 0:01:09]} 32. b4 {[%clk 0:00:02]}  Kh7 {[%clk 0:01:07]} 33. Qe3 {[%clk 0:00:02]}  Nc4 {[%clk 0:01:06]} 34. Qg3 {[%clk 0:00:02]}  Qd5 {[%clk 0:01:02]} 35. Bc5 {[%clk 0:00:02]}  Qd1+ {[%clk 0:01:00]} 36. Kh2 {[%clk 0:00:03]}  Nd2 {[%clk 0:01:00]} 37. Qg5 {[%clk 0:00:02]}  Nf1+ {[%clk 0:00:59]} 38. Kh1 {[%clk 0:00:03]}  Ng3+ {[%clk 0:00:54]} 39. Kh2 {[%clk 0:00:03]}  Ne4 {[%clk 0:00:31]} 40. Qe7 {[%clk 0:00:01]}  Nxc5 {[%clk 0:00:25]} 41. bxc5 {[%clk 0:00:02]}  Qc2 {[%clk 0:00:25]} 42. f4 {[%clk 0:00:02]}  Qf5 {[%clk 0:00:20]} 43. Qc7 {[%clk 0:00:02]}  Kh6 {[%clk 0:00:19]} 44. c6 {[%clk 0:00:03]}  Bf8 {[%clk 0:00:17]} 45. Qb8 {[%clk 0:00:01]}  Kh7 {[%clk 0:00:13]} 46. Qc7+ {[%clk 0:00:01]}  Kg8 {[%clk 0:00:13]} 47. Qb8 {[%clk 0:00:01]}  Qe4 {[%clk 0:00:13]} 48. g3 {[%clk 0:00:01]}  Qe2+ {[%clk 0:00:13]} 49. Kh1 {[%clk 0:00:01]}  Qf1+ {[%clk 0:00:13]} 50. Kh2 {[%clk 0:00:02]}  Qf2+ {[%clk 0:00:14]} 51. Kh1 {[%clk 0:00:02]}  Qxg3 {[%clk 0:00:14]} 52. c7 {[%clk 0:00:02]}  Qf3+ {[%clk 0:00:14]} 53. Kg1 {[%clk 0:00:02]}  Qg3+ {[%clk 0:00:14]} 54. Kf1 {[%clk 0:00:03]}  Qxf4+ {[%clk 0:00:15]} 55. Ke2 {[%clk 0:00:03]}  Qe4+ {[%clk 0:00:15]} 56. Kd2 {[%clk 0:00:03]}  Qd4+ {[%clk 0:00:16]} 57. Kc2 {[%clk 0:00:03]}  Qe4+ {[%clk 0:00:16]} 58. Kb3 {[%clk 0:00:03]}  Qd5+ {[%clk 0:00:16]} 59. Kb2 {[%clk 0:00:03]}  Qd2+ {[%clk 0:00:16]} 60. Kb3 {[%clk 0:00:03]}  Qd5+ {[%clk 0:00:16]} 61. Kc3 {[%clk 0:00:02]}  Qc5+ {[%clk 0:00:16]} 62. Kb3 {[%clk 0:00:03]}  Qd5+ {[%clk 0:00:16]} 1/2-1/2


[Site "https://www.chess.com"]

[Event "Titled Tuesday Blitz February 21 Early 2023"]
[White "Dauner, Benedikt"]
[Black "Lucassen, Mickey"]
[WhiteFideId "16225899"]
[BlackFideId "12919110"]
[WhiteElo "2400"]
[BlackElo "2023"]
[Result "1-0"]
[Round "10"]
[TimeControl "180+2"]
[Date "2023.02.21"]
[WhiteClock "0:00:31"]
[BlackClock "0:00:10"]

1. e4 {[%clk 0:03:00]}  c5 {[%clk 0:02:56]} 2. Nf3 {[%clk 0:02:58]}  d6 {[%clk 0:02:56]} 3. d4 {[%clk 0:02:57]}  cxd4 {[%clk 0:02:56]} 4. Nxd4 {[%clk 0:02:56]}  Nf6 {[%clk 0:02:57]} 5. Nc3 {[%clk 0:02:56]}  a6 {[%clk 0:02:57]} 6. Bg5 {[%clk 0:02:54]}  e6 {[%clk 0:02:57]} 7. f4 {[%clk 0:02:53]}  Be7 {[%clk 0:02:58]} 8. Qf3 {[%clk 0:02:52]}  Qc7 {[%clk 0:02:58]} 9. O-O-O {[%clk 0:02:52]}  Nbd7 {[%clk 0:02:57]} 10. g4 {[%clk 0:02:51]}  b5 {[%clk 0:02:57]} 11. Bxf6 {[%clk 0:02:39]}  Nxf6 {[%clk 0:02:57]} 12. g5 {[%clk 0:02:39]}  Nd7 {[%clk 0:02:57]} 13. h4 {[%clk 0:02:32]}  Bb7 {[%clk 0:02:52]} 14. f5 {[%clk 0:02:24]}  Nc5 {[%clk 0:02:24]} 15. g6 {[%clk 0:01:45]}  hxg6 {[%clk 0:01:26]} 16. fxe6 {[%clk 0:01:44]}  Bxh4 {[%clk 0:01:16]} 17. Bh3 {[%clk 0:01:32]}  b4 {[%clk 0:01:07]} 18. Nd5 {[%clk 0:01:30]}  Bxd5 {[%clk 0:01:07]} 19. exd5 {[%clk 0:01:29]}  f5 {[%clk 0:01:03]} 20. Nc6 {[%clk 0:01:12]}  Bf6 {[%clk 0:00:57]} 21. Qg2 {[%clk 0:01:03]}  O-O {[%clk 0:00:44]} 22. Qxg6 {[%clk 0:00:59]}  Na4 {[%clk 0:00:23]} 23. Bxf5 {[%clk 0:00:39]}  Bxb2+ {[%clk 0:00:23]} 24. Kb1 {[%clk 0:00:40]}  Nc3+ {[%clk 0:00:15]} 25. Kxb2 {[%clk 0:00:39]}  Nxd1+ {[%clk 0:00:16]} 26. Rxd1 {[%clk 0:00:38]}  Rxf5 {[%clk 0:00:16]} 27. Qxf5 {[%clk 0:00:37]}  Rf8 {[%clk 0:00:16]} 28. Qxf8+ {[%clk 0:00:30]}  Kxf8 {[%clk 0:00:16]} 29. e7+ {[%clk 0:00:30]}  Ke8 {[%clk 0:00:16]} 30. Rf1 {[%clk 0:00:31]}  Qb7 {[%clk 0:00:10]} 1-0


[Site "https://www.chess.com"]

[Event "Titled Tuesday Blitz February 21 Early 2023"]
[White "Rios Escobar, Adan"]
[Black "Erzhanov, Arman"]
[WhiteFideId "3403645"]
[BlackFideId "4138821"]
[WhiteElo "2234"]
[BlackElo "2228"]
[Result "0-1"]
[Round "10"]
[TimeControl "180+2"]
[Date "2023.02.21"]
[WhiteClock "0:01:57"]
[BlackClock "0:02:35"]

1. d4 {[%clk 0:02:58]}  d6 {[%clk 0:02:57]} 2. g3 {[%clk 0:02:57]}  e5 {[%clk 0:02:56]} 3. dxe5 {[%clk 0:02:58]}  dxe5 {[%clk 0:02:57]} 4. Qxd8+ {[%clk 0:02:59]}  Kxd8 {[%clk 0:02:57]} 5. e4 {[%clk 0:02:59]}  Be6 {[%clk 0:02:55]} 6. f4 {[%clk 0:03:00]}  f6 {[%clk 0:02:55]} 7. Nf3 {[%clk 0:02:59]}  Nd7 {[%clk 0:02:55]} 8. Nc3 {[%clk 0:02:58]}  c6 {[%clk 0:02:52]} 9. Bd2 {[%clk 0:02:57]}  Nh6 {[%clk 0:02:52]} 10. h3 {[%clk 0:02:52]}  Kc7 {[%clk 0:02:51]} 11. O-O-O {[%clk 0:02:51]}  Bd6 {[%clk 0:02:50]} 12. a4 {[%clk 0:02:40]}  Rhd8 {[%clk 0:02:46]} 13. a5 {[%clk 0:02:38]}  b6 {[%clk 0:02:43]} 14. f5 {[%clk 0:02:29]}  Bg8 {[%clk 0:02:42]} 15. Bxh6 {[%clk 0:02:29]}  gxh6 {[%clk 0:02:42]} 16. Rh2 {[%clk 0:02:16]}  bxa5 {[%clk 0:02:40]} 17. Na4 {[%clk 0:02:13]}  Nb6 {[%clk 0:02:37]} 18. b3 {[%clk 0:02:00]}  Nxa4 {[%clk 0:02:35]} 19. bxa4 {[%clk 0:02:01]}  Ba3+ {[%clk 0:02:35]} 20. Kb1 {[%clk 0:01:57]}  Rxd1# {[%clk 0:02:35]} 0-1


[Site "https://www.chess.com"]

[Event "Titled Tuesday Blitz February 21 Early 2023"]
[White "Meera, Sai"]
[Black "Chakravarthi Reddy, M"]
[WhiteFideId "5004357"]
[BlackFideId "25009532"]
[WhiteElo "2064"]
[BlackElo "2279"]
[Result "1-0"]
[Round "10"]
[TimeControl "180+2"]
[Date "2023.02.21"]
[WhiteClock "0:00:53"]
[BlackClock "0:00:02"]

1. e4 {[%clk 0:03:00]}  e6 {[%clk 0:02:24]} 2. d4 {[%clk 0:03:00]}  d5 {[%clk 0:02:20]} 3. Nc3 {[%clk 0:03:01]}  Be7 {[%clk 0:02:19]} 4. e5 {[%clk 0:03:00]}  c5 {[%clk 0:02:16]} 5. Nf3 {[%clk 0:02:54]}  Nc6 {[%clk 0:01:54]} 6. Be3 {[%clk 0:02:53]}  Qb6 {[%clk 0:01:47]} 7. dxc5 {[%clk 0:02:47]}  Bxc5 {[%clk 0:01:45]} 8. Bxc5 {[%clk 0:02:37]}  Qxc5 {[%clk 0:01:46]} 9. Bd3 {[%clk 0:02:35]}  Nge7 {[%clk 0:01:38]} 10. O-O {[%clk 0:02:35]}  Ng6 {[%clk 0:01:38]} 11. Bxg6 {[%clk 0:02:19]}  hxg6 {[%clk 0:01:38]} 12. Ne2 {[%clk 0:02:19]}  b6 {[%clk 0:01:32]} 13. Ned4 {[%clk 0:02:19]}  Ba6 {[%clk 0:01:30]} 14. Re1 {[%clk 0:02:19]}  Rc8 {[%clk 0:01:25]} 15. c3 {[%clk 0:02:18]}  Qe7 {[%clk 0:01:19]} 16. Qa4 {[%clk 0:02:10]}  Qb7 {[%clk 0:01:14]} 17. b4 {[%clk 0:02:06]}  b5 {[%clk 0:01:06]} 18. Qd1 {[%clk 0:01:59]}  Qe7 {[%clk 0:00:53]} 19. Nb3 {[%clk 0:01:56]}  Bb7 {[%clk 0:00:48]} 20. Nc5 {[%clk 0:01:57]}  Ba8 {[%clk 0:00:48]} 21. Nd4 {[%clk 0:01:57]}  Nxd4 {[%clk 0:00:43]} 22. cxd4 {[%clk 0:01:57]}  Qh4 {[%clk 0:00:40]} 23. h3 {[%clk 0:01:55]}  Qg5 {[%clk 0:00:26]} 24. Qd3 {[%clk 0:01:53]}  Bc6 {[%clk 0:00:21]} 25. Rac1 {[%clk 0:01:52]}  O-O {[%clk 0:00:20]} 26. Rc3 {[%clk 0:01:49]}  Be8 {[%clk 0:00:19]} 27. Rec1 {[%clk 0:01:49]}  Qf5 {[%clk 0:00:17]} 28. Qe2 {[%clk 0:01:34]}  a5 {[%clk 0:00:17]} 29. bxa5 {[%clk 0:01:25]}  b4 {[%clk 0:00:18]} 30. Rf3 {[%clk 0:01:23]}  Qh5 {[%clk 0:00:16]} 31. a6 {[%clk 0:01:20]}  Rb8 {[%clk 0:00:15]} 32. Qd2 {[%clk 0:01:10]}  Ba4 {[%clk 0:00:12]} 33. a7 {[%clk 0:01:04]}  Ra8 {[%clk 0:00:09]} 34. Qxb4 {[%clk 0:01:05]}  Bc6 {[%clk 0:00:05]} 35. Ra3 {[%clk 0:01:03]}  Qg5 {[%clk 0:00:04]} 36. Nd3 {[%clk 0:01:00]}  Rfc8 {[%clk 0:00:02]} 37. Rac3 {[%clk 0:00:54]}  Bd7 {[%clk 0:00:02]} 38. f4 {[%clk 0:00:53]} 1-0


[Site "https://www.chess.com"]

[Event "Titled Tuesday Blitz February 21 Early 2023"]
[White "Shuvalov, Evgenij"]
[Black "Guzman Moneo, Alberto"]
[WhiteFideId "4187237"]
[BlackFideId "2209616"]
[WhiteElo "2038"]
[BlackElo "2170"]
[Result "1-0"]
[Round "10"]
[TimeControl "180+2"]
[Date "2023.02.21"]
[WhiteClock "0:00:23"]
[BlackClock "0:00:30"]

1. d4 {[%clk 0:02:53]}  Nf6 {[%clk 0:02:59]} 2. c4 {[%clk 0:02:53]}  c5 {[%clk 0:02:59]} 3. d5 {[%clk 0:02:53]}  b5 {[%clk 0:02:59]} 4. cxb5 {[%clk 0:02:54]}  a6 {[%clk 0:02:59]} 5. bxa6 {[%clk 0:02:55]}  g6 {[%clk 0:02:59]} 6. Nc3 {[%clk 0:02:55]}  Bxa6 {[%clk 0:02:59]} 7. e4 {[%clk 0:02:55]}  Bxf1 {[%clk 0:03:00]} 8. Kxf1 {[%clk 0:02:56]}  d6 {[%clk 0:03:00]} 9. g3 {[%clk 0:02:56]}  Bg7 {[%clk 0:02:56]} 10. Kg2 {[%clk 0:02:56]}  O-O {[%clk 0:02:56]} 11. Nf3 {[%clk 0:02:56]}  Nbd7 {[%clk 0:02:56]} 12. a4 {[%clk 0:02:56]}  Ra6 {[%clk 0:02:56]} 13. Qc2 {[%clk 0:02:45]}  Qa8 {[%clk 0:02:53]} 14. Nb5 {[%clk 0:02:45]}  Qb7 {[%clk 0:02:51]} 15. Ra3 {[%clk 0:02:40]}  Ne8 {[%clk 0:02:42]} 16. Bg5 {[%clk 0:02:33]}  Ne5 {[%clk 0:02:41]} 17. Nd2 {[%clk 0:02:26]}  Nc7 {[%clk 0:02:30]} 18. Nxc7 {[%clk 0:01:52]}  Qxc7 {[%clk 0:02:31]} 19. b4 {[%clk 0:01:44]}  Rb8 {[%clk 0:02:25]} 20. Rb1 {[%clk 0:01:39]}  Qd7 {[%clk 0:02:10]} 21. b5 {[%clk 0:01:36]}  Rab6 {[%clk 0:02:04]} 22. Bf4 {[%clk 0:01:31]}  h5 {[%clk 0:01:56]} 23. Bxe5 {[%clk 0:01:30]}  Bxe5 {[%clk 0:01:55]} 24. Nc4 {[%clk 0:01:31]}  R6b7 {[%clk 0:01:49]} 25. b6 {[%clk 0:01:29]}  Bd4 {[%clk 0:01:45]} 26. a5 {[%clk 0:01:27]}  e6 {[%clk 0:01:39]} 27. a6 {[%clk 0:01:25]}  exd5 {[%clk 0:01:38]} 28. exd5 {[%clk 0:01:23]}  h4 {[%clk 0:01:23]} 29. axb7 {[%clk 0:01:18]}  h3+ {[%clk 0:01:23]} 30. Kg1 {[%clk 0:01:18]}  Rxb7 {[%clk 0:01:21]} 31. Qe4 {[%clk 0:01:09]}  Kg7 {[%clk 0:01:15]} 32. Ra8 {[%clk 0:01:07]}  Rxb6 {[%clk 0:00:59]} 33. Nxb6 {[%clk 0:01:00]}  Qb7 {[%clk 0:00:58]} 34. Qe8 {[%clk 0:00:55]}  Kh6 {[%clk 0:00:57]} 35. Qd8 {[%clk 0:00:45]}  g5 {[%clk 0:00:48]} 36. Qxd6+ {[%clk 0:00:39]}  Kg7 {[%clk 0:00:47]} 37. Qd8 {[%clk 0:00:35]}  Kh6 {[%clk 0:00:43]} 38. Qc8 {[%clk 0:00:33]}  Qe7 {[%clk 0:00:41]} 39. Qxh3+ {[%clk 0:00:33]}  Kg6 {[%clk 0:00:41]} 40. Rg8+ {[%clk 0:00:31]}  Bg7 {[%clk 0:00:41]} 41. Qh8 {[%clk 0:00:29]}  Qe2 {[%clk 0:00:30]} 42. Qxg7+ {[%clk 0:00:27]}  Kf5 {[%clk 0:00:31]} 43. Qxf7+ {[%clk 0:00:26]}  Kg4 {[%clk 0:00:31]} 44. Qe6+ {[%clk 0:00:24]}  Kh5 {[%clk 0:00:31]} 45. Qxe2+ {[%clk 0:00:23]}  g4 {[%clk 0:00:31]} 46. Qe5+ {[%clk 0:00:22]}  Kh6 {[%clk 0:00:30]} 47. Qh8# {[%clk 0:00:23]} 1-0


[Site "https://www.chess.com"]

[Event "Titled Tuesday Blitz February 21 Early 2023"]
[White "Jenkins, Drake"]
[Black "Babikov, Ivan"]
[WhiteFideId "2022397"]
[BlackFideId "4161106"]
[WhiteElo "2130"]
[BlackElo "2239"]
[Result "1-0"]
[Round "10"]
[TimeControl "180+2"]
[Date "2023.02.21"]
[WhiteClock "0:00:07"]
[BlackClock "0:00:09"]

1. Nf3 {[%clk 0:03:00]}  d5 {[%clk 0:03:00]} 2. g3 {[%clk 0:02:59]}  Nf6 {[%clk 0:02:57]} 3. Bg2 {[%clk 0:03:00]}  g6 {[%clk 0:02:57]} 4. O-O {[%clk 0:02:59]}  Bg7 {[%clk 0:02:58]} 5. c4 {[%clk 0:02:59]}  O-O {[%clk 0:02:57]} 6. cxd5 {[%clk 0:02:59]}  Nxd5 {[%clk 0:02:57]} 7. d4 {[%clk 0:02:59]}  b6 {[%clk 0:02:49]} 8. e4 {[%clk 0:02:58]}  Nf6 {[%clk 0:02:49]} 9. Nc3 {[%clk 0:02:58]}  Bb7 {[%clk 0:02:49]} 10. Re1 {[%clk 0:02:53]}  c5 {[%clk 0:02:46]} 11. d5 {[%clk 0:02:53]}  Na6 {[%clk 0:02:37]} 12. Bf4 {[%clk 0:02:51]}  Nc7 {[%clk 0:02:34]} 13. d6 {[%clk 0:02:32]}  exd6 {[%clk 0:02:34]} 14. Qxd6 {[%clk 0:02:31]}  Ne6 {[%clk 0:02:31]} 15. Rad1 {[%clk 0:02:25]}  Nxf4 {[%clk 0:02:09]} 16. Qxf4 {[%clk 0:02:24]}  Qe7 {[%clk 0:02:04]} 17. Nd5 {[%clk 0:02:19]}  Nxd5 {[%clk 0:02:02]} 18. exd5 {[%clk 0:02:20]}  Qf6 {[%clk 0:01:55]} 19. Qxf6 {[%clk 0:02:01]}  Bxf6 {[%clk 0:01:56]} 20. b3 {[%clk 0:02:00]}  Rad8 {[%clk 0:01:53]} 21. Ne5 {[%clk 0:01:44]}  Rd6 {[%clk 0:01:39]} 22. Nc6 {[%clk 0:01:16]}  a6 {[%clk 0:01:27]} 23. h4 {[%clk 0:01:00]}  h5 {[%clk 0:01:26]} 24. Bf3 {[%clk 0:00:59]}  Kg7 {[%clk 0:01:19]} 25. Kg2 {[%clk 0:00:47]}  Ba8 {[%clk 0:00:52]} 26. Re3 {[%clk 0:00:47]}  Bb7 {[%clk 0:00:50]} 27. Rde1 {[%clk 0:00:47]}  b5 {[%clk 0:00:44]} 28. Rc1 {[%clk 0:00:41]}  Bd4 {[%clk 0:00:36]} 29. Rd3 {[%clk 0:00:35]}  Bxc6 {[%clk 0:00:34]} 30. dxc6 {[%clk 0:00:35]}  Re8 {[%clk 0:00:30]} 31. Rcd1 {[%clk 0:00:27]}  a5 {[%clk 0:00:21]} 32. R1d2 {[%clk 0:00:16]}  Re7 {[%clk 0:00:16]} 33. a3 {[%clk 0:00:12]}  Re8 {[%clk 0:00:16]} 34. b4 {[%clk 0:00:11]}  axb4 {[%clk 0:00:11]} 35. axb4 {[%clk 0:00:11]}  Red8 {[%clk 0:00:10]} 36. bxc5 {[%clk 0:00:10]}  Bxc5 {[%clk 0:00:10]} 37. c7 {[%clk 0:00:08]}  Rc8 {[%clk 0:00:03]} 38. Rxd6 {[%clk 0:00:06]}  Bxd6 {[%clk 0:00:04]} 39. Rxd6 {[%clk 0:00:06]}  Rxc7 {[%clk 0:00:05]} 40. Rb6 {[%clk 0:00:06]}  Rc5 {[%clk 0:00:05]} 41. Rb7 {[%clk 0:00:06]}  Kg8 {[%clk 0:00:03]} 42. Bd1 {[%clk 0:00:06]}  Kg7 {[%clk 0:00:03]} 43. Bb3 {[%clk 0:00:07]}  Rf5 {[%clk 0:00:02]} 44. f4 {[%clk 0:00:05]}  Kg8 {[%clk 0:00:01]} 45. Kf3 {[%clk 0:00:05]}  Kg7 {[%clk 0:00:02]} 46. Ke4 {[%clk 0:00:05]}  Kg8 {[%clk 0:00:02]} 47. Rc7 {[%clk 0:00:05]}  Kf8 {[%clk 0:00:03]} 48. Bd5 {[%clk 0:00:05]}  b4 {[%clk 0:00:02]} 49. Rb7 {[%clk 0:00:04]}  Ke8 {[%clk 0:00:02]} 50. Rb8+ {[%clk 0:00:04]}  Ke7 {[%clk 0:00:02]} 51. Rxb4 {[%clk 0:00:04]}  Kd6 {[%clk 0:00:03]} 52. Rb6+ {[%clk 0:00:04]}  Kc5 {[%clk 0:00:03]} 53. Rc6+ {[%clk 0:00:04]}  Kb5 {[%clk 0:00:03]} 54. Rc7 {[%clk 0:00:04]}  f6 {[%clk 0:00:03]} 55. Be6 {[%clk 0:00:04]}  Rc5 {[%clk 0:00:01]} 56. Rxc5+ {[%clk 0:00:04]}  Kxc5 {[%clk 0:00:02]} 57. Bf7 {[%clk 0:00:05]}  g5 {[%clk 0:00:01]} 58. hxg5 {[%clk 0:00:05]}  fxg5 {[%clk 0:00:02]} 59. Bxh5 {[%clk 0:00:05]}  Kd6 {[%clk 0:00:03]} 60. fxg5 {[%clk 0:00:04]}  Ke7 {[%clk 0:00:04]} 61. Kf5 {[%clk 0:00:04]}  Kf8 {[%clk 0:00:05]} 62. Kf6 {[%clk 0:00:04]}  Kg8 {[%clk 0:00:06]} 63. g6 {[%clk 0:00:05]}  Kf8 {[%clk 0:00:06]} 64. Bg4 {[%clk 0:00:06]}  Kg8 {[%clk 0:00:07]} 65. Be6+ {[%clk 0:00:05]}  Kh8 {[%clk 0:00:07]} 66. g7+ {[%clk 0:00:06]}  Kh7 {[%clk 0:00:08]} 67. g8=Q+ {[%clk 0:00:07]}  Kh6 {[%clk 0:00:09]} 68. Qg6# {[%clk 0:00:07]} 1-0


[Site "https://www.chess.com"]

[Event "Titled Tuesday Blitz February 21 Early 2023"]
[White "Jovic, Stanoje"]
[Black "Kohler, Aran"]
[WhiteFideId "905020"]
[BlackFideId "1002856"]
[WhiteElo "2075"]
[BlackElo "2010"]
[Result "1-0"]
[Round "10"]
[TimeControl "180+2"]
[Date "2023.02.21"]
[WhiteClock "0:00:26"]
[BlackClock "0:00:20"]

1. c4 {[%clk 0:03:00]}  e5 {[%clk 0:02:58]} 2. g3 {[%clk 0:03:00]}  Nf6 {[%clk 0:02:57]} 3. Bg2 {[%clk 0:03:01]}  d5 {[%clk 0:02:56]} 4. cxd5 {[%clk 0:03:00]}  Nxd5 {[%clk 0:02:56]} 5. Nf3 {[%clk 0:03:00]}  Nc6 {[%clk 0:02:55]} 6. O-O {[%clk 0:02:59]}  Nb6 {[%clk 0:02:45]} 7. Nc3 {[%clk 0:02:59]}  Be7 {[%clk 0:02:45]} 8. d4 {[%clk 0:02:59]}  exd4 {[%clk 0:02:40]} 9. Nb5 {[%clk 0:02:59]}  Bf6 {[%clk 0:02:27]} 10. Bf4 {[%clk 0:02:58]}  Nd5 {[%clk 0:02:27]} 11. Bg5 {[%clk 0:02:58]}  O-O {[%clk 0:02:10]} 12. Bxf6 {[%clk 0:02:56]}  Nxf6 {[%clk 0:01:58]} 13. Nbxd4 {[%clk 0:02:53]}  Nxd4 {[%clk 0:01:59]} 14. Qxd4 {[%clk 0:02:50]}  Qxd4 {[%clk 0:01:57]} 15. Nxd4 {[%clk 0:02:50]}  c6 {[%clk 0:01:58]} 16. a4 {[%clk 0:02:44]}  a5 {[%clk 0:01:54]} 17. Nb3 {[%clk 0:02:35]}  Re8 {[%clk 0:01:32]} 18. e3 {[%clk 0:02:31]}  Be6 {[%clk 0:01:31]} 19. Nc5 {[%clk 0:02:29]}  Rab8 {[%clk 0:01:31]} 20. Rfd1 {[%clk 0:02:21]}  Bd5 {[%clk 0:01:30]} 21. Bxd5 {[%clk 0:01:49]}  Nxd5 {[%clk 0:01:30]} 22. e4 {[%clk 0:01:46]}  Nb4 {[%clk 0:01:29]} 23. f3 {[%clk 0:01:39]}  b6 {[%clk 0:01:27]} 24. Nb3 {[%clk 0:01:37]}  Rbd8 {[%clk 0:01:26]} 25. Nd4 {[%clk 0:01:23]}  g6 {[%clk 0:01:24]} 26. Rac1 {[%clk 0:01:16]}  c5 {[%clk 0:01:24]} 27. Nb5 {[%clk 0:01:13]}  Nd3 {[%clk 0:01:17]} 28. Rc2 {[%clk 0:01:01]}  Ne5 {[%clk 0:01:16]} 29. Rxd8 {[%clk 0:00:57]}  Rxd8 {[%clk 0:01:15]} 30. Kf2 {[%clk 0:00:57]}  Rd3 {[%clk 0:01:11]} 31. f4 {[%clk 0:00:56]}  Ng4+ {[%clk 0:01:09]} 32. Ke1 {[%clk 0:00:40]}  Ne3 {[%clk 0:00:52]} 33. Rc3 {[%clk 0:00:35]}  Rxc3 {[%clk 0:00:44]} 34. Nxc3 {[%clk 0:00:34]}  Nc4 {[%clk 0:00:41]} 35. b3 {[%clk 0:00:32]}  Nd6 {[%clk 0:00:36]} 36. Nd5 {[%clk 0:00:30]}  Nc8 {[%clk 0:00:36]} 37. Kd2 {[%clk 0:00:30]}  Kf8 {[%clk 0:00:28]} 38. Kd3 {[%clk 0:00:30]}  h5 {[%clk 0:00:28]} 39. Kc4 {[%clk 0:00:30]}  Ke8 {[%clk 0:00:29]} 40. Kb5 {[%clk 0:00:29]}  Nd6+ {[%clk 0:00:26]} 41. Kxb6 {[%clk 0:00:29]}  Nxe4 {[%clk 0:00:27]} 42. Kxa5 {[%clk 0:00:30]}  Kd7 {[%clk 0:00:25]} 43. Kb6 {[%clk 0:00:29]}  Kd6 {[%clk 0:00:25]} 44. Nc7 {[%clk 0:00:25]}  Nd2 {[%clk 0:00:22]} 45. Nb5+ {[%clk 0:00:26]}  Kd5 {[%clk 0:00:20]} 46. a5 {[%clk 0:00:26]}  Nxb3 {[%clk 0:00:20]} 47. a6 {[%clk 0:00:27]}  c4 {[%clk 0:00:19]} 48. a7 {[%clk 0:00:26]}  Nc5 {[%clk 0:00:20]} 49. a8=Q+ {[%clk 0:00:26]} 1-0


[Site "https://www.chess.com"]